fUSD/lending_fUSD_20241215
["ID","MTS","AMOUNT","RATE_DAILY","PERIOD"]
[345487244,1734289851949,-500.0,0.00019178,2]
[345487245,1734289851958,-500.0,0.00019178,2]
[345487246,1734289851967,-500.0,0.00019178,2]
[345487247,1734289851976,-500.0,0.00019178,2]
[345487248,1734289851986,-500.0,0.00019178,2]
[345487249,1734289851996,-500.0,0.00019178,2]
[345487250,1734289852005,-500.0,0.00019178,2]
[345487251,1734289852014,-500.0,0.00019178,2]
[345487252,1734289852024,-500.0,0.00019178,2]
[345487253,1734289852033,-500.0,0.00019178,2]
[345487254,1734289852043,-500.0,0.00019178,2]
[345487255,1734289852052,-500.0,0.00019178,2]
[345487256,1734289852061,-500.0,0.00019178,2]
[345487257,1734289852070,-204.31,0.00019178,2]
[345487258,1734289852080,-500.0,0.00019178,2]
[345487259,1734289852089,-500.0,0.00019178,2]
[345487260,1734289852099,-500.0,0.00019178,2]
[345487261,1734289852108,-500.0,0.00019178,2]
[345487262,1734289852118,-500.0,0.00019178,2]
[345487263,1734289852127,-500.0,0.00019178,2]
[345487264,1734289852137,-190.96,0.00019178,2]
[345487265,1734289852146,-500.0,0.00019178,2]
[345487266,1734289852155,-500.0,0.00019178,2]
[345487267,1734289852164,-500.0,0.00019178,2]
[345487268,1734289852174,-500.0,0.00019178,2]
[345487269,1734289852183,-500.0,0.00019178,2]
[345487270,1734289852193,-500.0,0.00019178,2]
[345487271,1734289852202,-500.0,0.00019178,2]
[345487272,1734289852212,-500.0,0.00019178,2]
[345487273,1734289852221,-500.0,0.00019178,2]
[345487274,1734289852231,-500.0,0.00019178,2]
[345487275,1734289852242,-500.0,0.00019178,2]
[345487276,1734289852252,-500.0,0.00019178,2]
[345487277,1734289852262,-500.0,0.00019178,2]
[345487278,1734289852272,-500.0,0.00019178,2]
[345487279,1734289852281,-500.05,0.00019178,2]
[345487280,1734289852291,-500.0,0.00019178,2]
[345487281,1734289852301,-501.45120801,0.00019178,2]
[345487282,1734289852310,-541.71,0.00019178,2]
[345487283,1734289852320,-500.0,0.00019178,2]
[345487284,1734289852329,-378.47,0.00019178,2]
[345487285,1734289852339,-501.65766378,0.00019178,2]
[345487286,1734289852353,-500.0,0.00019178,2]
[345487287,1734289852362,-500.0,0.00019178,2]
[345487288,1734289852371,-500.0,0.00019178,2]
[345487289,1734289852381,-500.0,0.00019178,2]
[345487290,1734289852391,-500.0,0.00019178,2]
[345487291,1734289852400,-500.0,0.00019178,2]
[345487292,1734289852409,-259.92285562,0.00019178,2]
[345487293,1734289852420,-500.0,0.00019178,2]
[345487294,1734289852429,-500.0,0.00019178,2]
[345487295,1734289852438,-500.72965803,0.00019178,2]
[345487296,1734289852447,-500.0,0.00019178,2]
[345487297,1734289852457,-500.0,0.00019178,2]
[345487298,1734289852466,-500.0,0.00019178,2]
[345487299,1734289852475,-500.0,0.00019178,2]
[345487300,1734289852484,-500.0,0.00019178,2]
[345487301,1734289852493,-500.0,0.00019178,2]
[345487302,1734289852502,-500.0,0.00019178,2]
[345487303,1734289852511,-500.0,0.00019178,2]
[345487304,1734289852521,-500.0,0.00019178,2]
[345487305,1734289852530,-500.0,0.00019178,2]
[345487306,1734289852539,-500.0,0.00019178,2]
[345487307,1734289852548,-407.28,0.00019178,2]
[345487308,1734289852558,-500.0,0.00019178,2]
[345487309,1734289852567,-500.0,0.00019178,2]
[345487310,1734289852576,-574.41968838,0.00019178,2]
[345487311,1734289852586,-500.0,0.00019178,2]
[345487312,1734289852595,-189.42,0.00019178,2]
[345487313,1734289852604,-473.72,0.00019178,2]
[345487314,1734289852614,-500.0,0.00019178,2]
[345487315,1734289852623,-500.0,0.00019178,2]
[345487316,1734289852633,-500.0,0.00019178,2]
[345487317,1734289852642,-500.0,0.00019178,2]
[345487318,1734289852651,-500.0,0.00019178,2]
[345487319,1734289852660,-500.0,0.00019178,2]
[345487320,1734289852670,-222.77,0.00019178,2]
[345487321,1734289852679,-500.0,0.00019178,2]
[345487322,1734289852688,-500.0,0.00019178,2]
[345487323,1734289852697,-501.63594944,0.00019178,2]
[345487324,1734289852706,-500.0,0.00019178,2]
[345487325,1734289852715,-500.0,0.00019178,2]
[345487326,1734289852725,-500.0,0.00019178,2]
[345487327,1734289852734,-500.0,0.00019178,2]
[345487328,1734289852742,-500.0,0.00019178,2]
[345487329,1734289852751,-500.0,0.00019178,2]
[345487330,1734289852760,-456.77,0.00019178,2]
[345487331,1734289852769,-500.0,0.00019178,2]
[345487332,1734289852779,-500.0,0.00019178,2]
[345487333,1734289852892,-500.0,0.00019178,2]
[345487334,1734289852918,-500.0,0.00019178,2]
[345487335,1734289852927,-500.0,0.00019178,2]
[345487336,1734289852937,-500.0,0.00019178,2]
[345487337,1734289852946,-500.0,0.00019178,2]
[345487338,1734289852955,-500.0,0.00019178,2]
[345487339,1734289852964,-327.22,0.00019178,2]
[345487340,1734289852973,-500.0,0.00019178,2]
[345487341,1734289852982,-500.0,0.00019178,2]
[345487342,1734289852990,-500.0,0.00019178,2]
[345487343,1734289852999,-619.15,0.00019178,2]
[345487344,1734289853008,-500.0,0.00019178,2]
[345487345,1734289853017,-500.0,0.00019178,2]
[345487346,1734289853026,-500.0,0.00019178,2]
[345487347,1734289853035,-163.27,0.00019178,2]
[345487348,1734289853044,-500.0,0.00019178,2]
[345487349,1734289853053,-500.0,0.00019178,2]
[345487350,1734289853062,-500.0,0.00019178,2]
[345487351,1734289853071,-500.0,0.00019178,2]
[345487352,1734289853080,-500.0,0.00019178,2]
[345487353,1734289853089,-193.72,0.00019178,2]
[345487354,1734289853098,-500.0,0.00019178,2]
[345487355,1734289853107,-500.0,0.00019178,2]
[345487356,1734289853116,-500.0,0.00019178,2]
[345487357,1734289853125,-500.0,0.00019178,2]
[345487358,1734289853136,-500.0,0.00019178,2]
[345487359,1734289853145,-500.0,0.00019178,2]
[345487360,1734289853154,-500.0,0.00019178,2]
[345487361,1734289853163,-500.0,0.00019178,2]
[345487362,1734289853172,-500.0,0.00019178,2]
[345487363,1734289853182,-500.0,0.00019178,2]
[345487364,1734289853191,-491.97,0.00019178,2]
[345487365,1734289853200,-500.0,0.00019178,2]
[345487366,1734289853209,-500.0,0.00019178,2]
[345487367,1734289853219,-500.0,0.00019178,2]
[345487368,1734289853228,-500.0,0.00019178,2]
[345487369,1734289853237,-500.0,0.00019178,2]
[345487370,1734289853247,-320.74915596,0.00019178,2]
[345487371,1734289853257,-238.26,0.00019178,2]
[345487372,1734289853266,-500.0,0.00019178,2]
[345487373,1734289853275,-500.0,0.00019178,2]
[345487374,1734289853285,-559.72,0.00019178,2]
[345487375,1734289853294,-373.38,0.00019178,2]
[345487376,1734289853302,-500.0,0.00019178,2]
[345487377,1734289853311,-500.0,0.00019178,2]
[345487378,1734289853321,-500.0,0.00019178,2]
[345487379,1734289853331,-500.0,0.00019178,2]
[345487380,1734289853341,-500.0,0.00019178,2]
[345487381,1734289853353,-500.0,0.00019178,2]
[345487382,1734289853362,-500.0,0.00019178,2]
[345487383,1734289853371,-500.0,0.00019178,2]
[345487384,1734289853382,-500.0,0.00019178,2]
[345487385,1734289853392,-500.0,0.00019178,2]
[345487386,1734289853401,-500.0,0.00019178,2]
[345487387,1734289853410,-500.0,0.00019178,2]
[345487388,1734289853419,-262.81,0.00019178,2]
[345487389,1734289853429,-500.0,0.00019178,2]
[345487390,1734289853438,-500.0,0.00019178,2]
[345487391,1734289853448,-500.0,0.00019178,2]
[345487392,1734289853457,-500.0,0.00019178,2]
[345487393,1734289853466,-547.89,0.00019178,2]
[345487394,1734289853475,-500.0,0.00019178,2]
[345487395,1734289853484,-500.0,0.00019178,2]
[345487396,1734289853493,-500.62219809,0.00019178,2]
[345487397,1734289853501,-500.0,0.00019178,2]
[345487398,1734289853512,-500.0,0.00019178,2]
[345487399,1734289853522,-500.0,0.00019178,2]
[345487400,1734289853531,-500.0,0.00019178,2]
[345487401,1734289853540,-500.0,0.00019178,2]
[345487402,1734289853549,-500.0,0.00019178,2]
[345487403,1734289853558,-500.0,0.00019178,2]
[345487404,1734289853567,-500.0,0.00019178,2]
[345487405,1734289853576,-198.4,0.00019178,2]
[345487406,1734289853585,-500.0,0.00019178,2]
[345487407,1734289853594,-500.0,0.00019178,2]
[345487408,1734289853603,-500.0,0.00019178,2]
[345487409,1734289853612,-500.0,0.00019178,2]
[345487410,1734289853621,-500.0,0.00019178,2]
[345487411,1734289853632,-500.0,0.00019178,2]
[345487412,1734289853641,-438.63,0.00019178,2]
[345487413,1734289853651,-500.0,0.00019178,2]
[345487414,1734289853661,-500.0,0.00019178,2]
[345487415,1734289853671,-500.0,0.00019178,2]
[345487416,1734289853680,-500.0,0.00019178,2]
[345487417,1734289853690,-500.0,0.00019178,2]
[345487418,1734289853699,-227.96,0.00019178,2]
[345487419,1734289853708,-500.0,0.00019178,2]
[345487420,1734289853717,-500.0,0.00019178,2]
[345487421,1734289853726,-500.0,0.00019178,2]
[345487422,1734289853735,-500.0,0.00019178,2]
[345487423,1734289853744,-409.71,0.00019178,2]
[345487424,1734289853753,-500.0,0.00019178,2]
[345487425,1734289853763,-500.0,0.00019178,2]
[345487426,1734289853772,-500.0,0.00019178,2]
[345487427,1734289853781,-500.0,0.00019178,2]
[345487428,1734289853791,-500.0,0.00019178,2]
[345487429,1734289853800,-500.0,0.00019178,2]
[345487430,1734289853808,-500.0,0.00019178,2]
[345487431,1734289853817,-500.0,0.00019178,2]
[345487432,1734289853826,-500.0,0.00019178,2]
[345487433,1734289853835,-500.0,0.00019178,2]
[345487434,1734289853844,-390.5,0.00019178,2]
[345487435,1734289853853,-500.0,0.00019178,2]
[345487436,1734289853862,-500.0,0.00019178,2]
[345487437,1734289853872,-500.0,0.00019178,2]
[345487438,1734289853881,-417.73509079,0.00019178,2]
[345487439,1734289853891,-500.0,0.00019178,2]
[345487440,1734289853900,-500.0,0.00019178,2]
[345487441,1734289853909,-500.0,0.00019178,2]
[345487442,1734289853918,-635.57,0.00019178,2]
[345487443,1734289853927,-500.0,0.00019178,2]
[345487444,1734289853937,-500.0,0.00019178,2]
[345487445,1734289853946,-500.0,0.00019178,2]
[345487446,1734289853955,-500.0,0.00019178,2]
[345487447,1734289853964,-187.2,0.00019178,2]
[345487448,1734289853973,-500.0,0.00019178,2]
[345487449,1734289853982,-500.0,0.00019178,2]
[345487450,1734289853991,-500.0,0.00019178,2]
[345487451,1734289854000,-500.0,0.00019178,2]
[345487452,1734289854010,-507.43109021,0.00019178,2]
[345487453,1734289854019,-500.0,0.00019178,2]
[345487454,1734289854029,-502.31877731,0.00019178,2]
[345487455,1734289854038,-573.1,0.00019178,2]
[345487456,1734289854047,-500.0,0.00019178,2]
[345487457,1734289854056,-500.0,0.00019178,2]
[345487458,1734289854065,-500.0,0.00019178,2]
[345487459,1734289854074,-500.0,0.00019178,2]
[345487460,1734289854083,-500.63961695,0.00019178,2]
[345487461,1734289854092,-500.0,0.00019178,2]
[345487462,1734289854101,-500.0,0.00019178,2]
[345487463,1734289854111,-500.0,0.00019178,2]
[345487464,1734289854121,-500.0,0.00019178,2]
[345487465,1734289854131,-500.0,0.00019178,2]
[345487466,1734289854140,-500.0,0.00019178,2]
[345487467,1734289854149,-305.66,0.00019178,2]
[345487468,1734289854158,-500.0,0.00019178,2]
[345487469,1734289854167,-500.0,0.00019178,2]
[345487470,1734289854176,-500.0,0.00019178,2]
[345487471,1734289854185,-500.0,0.00019178,2]
[345487472,1734289854194,-500.0,0.00019178,2]
[345487473,1734289854203,-547.6,0.00019178,2]
[345487474,1734289854212,-500.0,0.00019178,2]
[345487475,1734289854223,-500.0,0.00019178,2]
[345487476,1734289854232,-500.0,0.00019178,2]
[345487477,1734289854242,-500.0,0.00019178,2]
[345487478,1734289854251,-375.45073311,0.00019178,2]
[345487479,1734289854261,-500.0,0.00019178,2]
[345487480,1734289854271,-500.0,0.00019178,2]
[345487481,1734289854280,-500.59791383,0.00019178,2]
[345487482,1734289854289,-500.0,0.00019178,2]
[345487483,1734289854298,-501.07689622,0.00019178,2]
[345487484,1734289854307,-500.0,0.00019178,2]
[345487485,1734289854317,-500.0,0.00019178,2]
[345487486,1734289854327,-500.0,0.00019178,2]
[345487487,1734289854337,-500.0,0.00019178,2]
[345487488,1734289854349,-500.0,0.00019178,2]
[345487489,1734289854358,-500.0,0.00019178,2]
[345487490,1734289854368,-500.0,0.00019178,2]
[345487491,1734289854377,-211.26,0.00019178,2]
[345487492,1734289854388,-500.0,0.00019178,2]
[345487493,1734289854398,-151.0,0.00019178,2]
[345487494,1734289854407,-151.0,0.00019178,2]
[345487495,1734289854416,-151.0,0.00019178,2]
[345487496,1734289854426,-500.0,0.00019178,2]
[345487497,1734289854435,-151.0,0.00019178,2]
[345487498,1734289854445,-475.62,0.00019178,2]
[345487499,1734289854454,-151.0,0.00019178,2]
[345487500,1734289854464,-500.0,0.00019178,2]
[345487501,1734289854472,-500.0,0.00019178,2]
[345487502,1734289854482,-500.0,0.00019178,2]
[345487503,1734289854491,-260.17,0.00019178,2]
[345487504,1734289854500,-500.0,0.00019178,2]
[345487505,1734289854510,-259.26,0.00019178,2]
[345487506,1734289854519,-500.0,0.00019178,2]
[345487507,1734289854528,-568.49,0.00019178,2]
[345487508,1734289854538,-500.0,0.00019178,2]
[345487509,1734289854547,-500.0,0.00019178,2]
[345487510,1734289854556,-588.96180723,0.00019178,2]
[345487511,1734289854566,-500.0,0.00019178,2]
[345487512,1734289854575,-500.0,0.00019178,2]
[345487513,1734289854584,-500.0,0.00019178,2]
[345487514,1734289854594,-500.0,0.00019178,2]
[345487515,1734289854604,-500.0,0.00019178,2]
[345487516,1734289854613,-500.0,0.00019178,2]
[345487517,1734289854622,-500.0,0.00019178,2]
[345487518,1734289854633,-500.0,0.00019178,2]
[345487519,1734289854642,-500.0,0.00019178,2]
[345487520,1734289854651,-500.0,0.00019178,2]
[345487521,1734289854660,-500.0,0.00019178,2]
[345487522,1734289854669,-500.0,0.00019178,2]
[345487523,1734289854681,-500.0,0.00019178,2]
[345487524,1734289854691,-500.0,0.00019178,2]
[345487525,1734289854701,-219.11,0.00019178,2]
[345487526,1734289854713,-329.4,0.00019178,2]
[345487527,1734289854722,-500.0,0.00019178,2]
[345487528,1734289854731,-500.0,0.00019178,2]
[345487529,1734289854740,-500.0,0.00019178,2]
[345487530,1734289854749,-500.0,0.00019178,2]
[345487531,1734289854758,-500.0,0.00019178,2]
[345487532,1734289854767,-500.0,0.00019178,2]
[345487533,1734289854776,-522.71546587,0.00019178,2]
[345487534,1734289854785,-500.0,0.00019178,2]
[345487535,1734289854794,-500.0,0.00019178,2]
[345487536,1734289854804,-500.0,0.00019178,2]
[345487537,1734289854815,-596.59529069,0.00019178,2]
[345487538,1734289854825,-500.0,0.00019178,2]
[345487539,1734289854834,-500.0,0.00019178,2]
[345487540,1734289854843,-500.0,0.00019178,2]
[345487541,1734289854853,-500.0,0.00019178,2]
[345487542,1734289854862,-500.0,0.00019178,2]
[345487543,1734289854872,-500.0,0.00019178,2]
[345487544,1734289854881,-275.11,0.00019178,2]
[345487545,1734289854893,-500.0,0.00019178,2]
[345487546,1734289854902,-500.0,0.00019178,2]
[345487547,1734289854911,-583.39346831,0.00019178,2]
[345487548,1734289854920,-500.0,0.00019178,2]
[345487549,1734289854929,-500.0,0.00019178,2]
[345487550,1734289854938,-500.0,0.00019178,2]
[345487551,1734289854947,-500.0,0.00019178,2]
[345487552,1734289854957,-500.0,0.00019178,2]
[345487553,1734289854966,-500.0,0.00019178,2]
[345487554,1734289854975,-500.0,0.00019178,2]
[345487555,1734289854984,-617.77,0.00019178,2]
[345487556,1734289854992,-500.0,0.00019178,2]
[345487557,1734289855001,-500.0,0.00019178,2]
[345487558,1734289855011,-500.0,0.00019178,2]
[345487559,1734289855020,-500.0,0.00019178,2]
[345487560,1734289855030,-500.0,0.00019178,2]
[345487561,1734289855039,-500.0,0.00019178,2]
[345487562,1734289855049,-500.71243976,0.00019178,2]
[345487563,1734289855058,-500.0,0.00019178,2]
[345487564,1734289855067,-500.0,0.00019178,2]
[345487565,1734289855076,-505.54,0.00019178,2]
[345487566,1734289855085,-500.0,0.00019178,2]
[345487567,1734289855094,-500.0,0.00019178,2]
[345487568,1734289855103,-500.0,0.00019178,2]
[345487569,1734289855112,-500.0,0.00019178,2]
[345487570,1734289855121,-500.0,0.00019178,2]
[345487571,1734289855130,-500.0,0.00019178,2]
[345487572,1734289855143,-500.0,0.00019178,2]
[345487573,1734289855158,-412.44,0.00019178,2]
[345487574,1734289855167,-500.0,0.00019178,2]
[345487575,1734289855175,-500.0,0.00019178,2]
[345487576,1734289855185,-500.0,0.00019178,2]
[345487577,1734289855194,-500.0,0.00019178,2]
[345487578,1734289855202,-500.0,0.00019178,2]
[345487579,1734289855211,-500.0,0.00019178,2]
[345487580,1734289855220,-520.39,0.00019178,2]
[345487581,1734289855230,-500.0,0.00019178,2]
[345487582,1734289855239,-500.0,0.00019178,2]
[345487583,1734289855250,-500.0,0.00019178,2]
[345487584,1734289855260,-500.0,0.00019178,2]
[345487585,1734289855269,-500.0,0.00019178,2]
[345487586,1734289855278,-500.0,0.00019178,2]
[345487587,1734289855287,-500.0,0.00019178,2]
[345487588,1734289855296,-423.72396415,0.00019178,2]
[345487589,1734289855736,-76.27603585,0.00019178,2]
[345487590,1734289855746,-500.0,0.00019178,2]
[345487591,1734289855755,-500.0,0.00019178,2]
[345487592,1734289855765,-500.0,0.00019178,2]
[345487593,1734289855775,-500.0,0.00019178,2]
[345487594,1734289855785,-426.52,0.00019178,2]
[345487595,1734289855794,-500.0,0.00019178,2]
[345487596,1734289855804,-500.0,0.00019178,2]
[345487597,1734289855814,-500.0,0.00019178,2]
[345487598,1734289855823,-500.0,0.00019178,2]
[345487599,1734289855834,-335.80400415,0.00019178,2]
[345487600,1734289855851,-164.19599585,0.00019178,2]
[345487601,1734289855860,-500.0,0.00019178,2]
[345487602,1734289855869,-343.77513915,0.00019178,2]
[345487603,1734289855880,-156.22486085,0.00019178,2]
[345487604,1734289855893,-261.79,0.00019178,2]
[345487605,1734289855902,-500.0,0.00019178,2]
[345487606,1734289855912,-500.0,0.00019178,2]
[345487607,1734289855921,-131.33513915,0.00019178,2]
[345487608,1734289855933,-269.88564269,0.00019178,2]
[345487609,1734289855948,-98.77921816,0.00019178,2]
[345487610,1734289855958,-331.22078184,0.00019178,2]
[345487611,1734289855970,-168.77921816,0.00019178,2]
[345487612,1734289855980,-318.92078184,0.00019178,2]
[345487613,1734289856097,-181.07921816,0.00019178,2]
[345487614,1734289856107,-500.0,0.00019178,2]
[345487615,1734289856116,-500.0,0.00019178,2]
[345487616,1734289856125,-500.0,0.00019178,2]
[345487617,1734289856136,-500.0,0.00019178,2]
[345487618,1734289856150,-414.41469537,0.00019178,2]
[345487619,1734289856162,-86.52851586,0.00019178,2]
[345487620,1734289856171,-500.0,0.00019178,2]
[345487621,1734289856181,-500.0,0.00019178,2]
[345487622,1734289856193,-270.35574608,0.00019178,2]
[345487623,1734289856203,-500.0,0.00019178,2]
[345487624,1734289856212,-329.11573806,0.00019178,2]
[345487625,1734289996647,450.0,0.00013,2]
[345487626,1734289997768,500.0,0.00015,2]
[345487633,1734290566544,1000.0,0.0002,120]
[345487634,1734290573230,1000.0,0.0002,120]
[345487635,1734290573738,1000.0,0.0002,120]
[345487636,1734290575729,1000.0,0.0002,120]
[345487637,1734290577374,1000.0,0.0002,120]
[345487638,1734290585426,1000.0,0.0002,120]
[345487640,1734290631768,772.56,0.00015871,2]
[345487641,1734290686591,5000.0,0.0002,120]
[345487646,1734290792103,263.31,0.00018022,30]
[345487647,1734290809810,1075.22892795,0.00015,2]
[345487648,1734290819381,5254.55817386,0.00015,14]
[345487649,1734290879853,412.3730018,0.00015,10]
[345487653,1734290911430,5641.79766244,0.00015,2]
[345487656,1734291031737,-513.38219973,0.00016307,2]
[345487659,1734291031905,-305.84157842,0.00016307,2]
[345487660,1734291031915,-159.62046938,0.00017022,2]
[345487661,1734291031926,-1989.344846,0.00017036,2]
[345487662,1734291031935,-1056.0,0.00017122,2]
[345487663,1734291031945,-250.0,0.00017652,2]
[345487664,1734291032129,-1000.0,0.00017708,2]
[345487665,1734291032139,-250.0,0.0001776,2]
[345487666,1734291032148,-300.0,0.00017938,2]
[345487667,1734291032158,-3.60478606,0.00017939,2]
[345487673,1734291032368,-646.9888024,0.00017939,2]
[345487674,1734291032384,-10567.44641154,0.00017939,2]
[345487675,1734291032393,-159.62046936,0.00017956,2]
[345487676,1734291032402,-259.25,0.00017997,2]
[345487677,1734291032411,-769.32,0.00018,2]
[345487678,1734291032420,-446.91,0.00018027,2]
[345487679,1734291032429,-293.61,0.00018082,2]
[345487680,1734291032439,-769.32,0.000181,2]
[345487681,1734291032447,-2105.38911882,0.00018105,2]
[345487682,1734291032457,-2105.38911881,0.00018105,2]
[345487683,1734291032465,-151.9,0.00018128,2]
[345487684,1734291032474,-772.56,0.00018135,2]
[345487685,1734291032483,-200.0,0.00018157,2]
[345487686,1734291032492,-586.36,0.00018216,2]
[345487687,1734291032501,-691.906,0.0001822,2]
[345487688,1734291032511,-769.32,0.00018241,2]
[345487689,1734291032519,-492.45,0.00018281,2]
[345487690,1734291032529,-769.32,0.00018441,2]
[345487691,1734291032538,-854.28,0.00018441,2]
[345487692,1734291032547,-172.62,0.0001851,2]
[345487693,1734291032557,-769.32,0.00018658,2]
[345487694,1734291032566,-769.32,0.00018658,2]
[345487695,1734291032575,-769.32,0.00018658,2]
[345487696,1734291032584,-763.91,0.00018658,2]
[345487697,1734291032593,-217.0,0.00018751,2]
[345487698,1734291032602,-293.61,0.00018751,2]
[345487699,1734291032613,-159.62046936,0.0001889,2]
[345487700,1734291032623,-586.36,0.0001889,2]
[345487701,1734291032632,-1657.75034281,0.000189,2]
[345487702,1734291033044,-905.73193488,0.000189,2]
[345487703,1734291033062,-953.51772231,0.000189,2]
[345487704,1734291033071,-17056.36863187,0.00018978,2]
[345487705,1734291033082,-14666.34566813,0.00018978,2]
[345487706,1734291033091,-226.04,0.00019,2]
[345487707,1734291033100,-1169.08,0.00019041,2]
[345487708,1734291033109,-2336.399,0.00019059,2]
[345487709,1734291033119,-152.914,0.00019059,2]
[345487710,1734291033129,-279.83326405,0.00019078,2]
[345487711,1734291033138,-7368.48400035,0.00019078,2]
[345487712,1734291033149,-1209.496,0.00019078,2]
[345487713,1734291033164,-502.3272248,0.00019078,2]
[345487714,1734291033176,-1097.95352003,0.00019078,2]
[345487715,1734291033191,-12167.29808063,0.00019078,2]
[345487716,1734291033203,-8818.68733038,0.00019078,2]
[345487717,1734291033278,-201.18,0.00019078,2]
[345487718,1734291033289,-750.37477044,0.00019078,2]
[345487719,1734291033300,-3041.94714143,0.00019078,2]
[345487720,1734291033312,-1703.61103245,0.00019078,2]
[345487721,1734291033323,-5305.63369949,0.00019078,2]
[345487722,1734291033333,-1500.0,0.00019078,2]
[345487723,1734291033342,-500.0,0.00019164,2]
[345487724,1734291033351,-500.0,0.00019164,2]
[345487725,1734291033361,-279.83326404,0.00019169,2]
[345487726,1734291033370,-150.0,0.00019177,2]
[345487727,1734291033380,-502.62073221,0.00019178,2]
[345487728,1734291033389,-500.0,0.00019178,2]
[345487729,1734291033399,-500.0,0.00019178,2]
[345487730,1734291033408,-500.0,0.00019178,2]
[345487731,1734291033418,-500.0,0.00019178,2]
[345487732,1734291033428,-500.0,0.00019178,2]
[345487733,1734291033437,-157.95754089,0.00019178,2]
[345487734,1734291033447,-500.0,0.00019178,2]
[345487735,1734291033456,-500.0,0.00019178,2]
[345487736,1734291033465,-500.0,0.00019178,2]
[345487737,1734291033475,-500.0,0.00019178,2]
[345487738,1734291033484,-500.0,0.00019178,2]
[345487739,1734291033493,-500.0,0.00019178,2]
[345487740,1734291033502,-500.0,0.00019178,2]
[345487741,1734291033512,-500.0,0.00019178,2]
[345487742,1734291033522,-500.0,0.00019178,2]
[345487743,1734291033531,-500.0,0.00019178,2]
[345487744,1734291033541,-500.0,0.00019178,2]
[345487745,1734291033550,-500.0,0.00019178,2]
[345487746,1734291033560,-192.26786611,0.00019178,2]
[345487747,1734291033570,-500.0,0.00019178,2]
[345487748,1734291033579,-500.0,0.00019178,2]
[345487749,1734291033589,-500.0,0.00019178,2]
[345487750,1734291033599,-500.0,0.00019178,2]
[345487751,1734291033608,-500.0,0.00019178,2]
[345487752,1734291033618,-250.72829949,0.00019178,2]
[345487753,1734291033627,-500.0,0.00019178,2]
[345487754,1734291033637,-500.0,0.00019178,2]
[345487755,1734291033646,-500.0,0.00019178,2]
[345487756,1734291033655,-500.0,0.00019178,2]
[345487757,1734291033665,-500.0,0.00019178,2]
[345487758,1734291033675,-500.0,0.00019178,2]
[345487759,1734291033683,-500.0,0.00019178,2]
[345487760,1734291033692,-500.0,0.00019178,2]
[345487761,1734291033701,-500.0,0.00019178,2]
[345487762,1734291033711,-500.0,0.00019178,2]
[345487763,1734291033720,-500.0,0.00019178,2]
[345487764,1734291033730,-500.0,0.00019178,2]
[345487765,1734291033739,-500.0,0.00019178,2]
[345487766,1734291033749,-500.0,0.00019178,2]